Cogmind - Beta 9.4 @@@ ROGUE MODE // 2020.01.06 @ 22:05:33 // Winter2019/RPGLIKE Player: Rumbl3 Result: Destroyed by Tracker with Linked Autogun Performance ------------- Evolutions (8) 4000 Regions Visited (29) 5800 Robots Destroyed (261) 1305 Value Destroyed (12003) 12003 Prototype IDs (65) 1300 Alien Tech Used (4) 800 Bonus (10764) 10764 TOTAL SCORE: 35972 Bonus ------- High Alert Combat Kills 707 Follower Combat Kills 1071 Met Data Miner 300 Met Imprinter 300 Met Zhirov 300 Met Warlord at Base 500 MAIN.C Attacked Warlord 500 Warlord Defense Kill 1254 Found Hidden Lab 3000 Used Core Reset Matrix 3000 Pursued by Intercept 500 Friendly Fire -668 Cogmind --------- Core Integrity 0/2450 Matter 290/300 Energy 51/100 System Corruption 0% Temperature Cool (0) Movement Core (100) Ox1 Location -2/Research Parts ------- > --- POWER (2) -------- (None) > --- PROPULSION (6) --- Cooled Nuclear Pulse Thruster Improved Diametric Drive Improved Diametric Drive Impulse Thruster Array > --- UTILITY (13) ----- Experimental Signal Interpreter Experimental Terrain Scanner Experimental Targeting Computer Advanced Target Analyzer Experimental Core Analyzer Armor Integrity Analyzer Advanced Reaction Control System Experimental Phase Shifter Experimental Cloaking Device Advanced Thermal Defense Suite Experimental Hacking Suite Quantum Router > --- WEAPON (3) ------- Hypervelocity Railgun Vibroblade Molecular Scythe > --- INVENTORY (7) ---- Protomatter-67 Vortex Rail Railgun Hypervelocity Railgun Improved Proton Missile Launcher Guided Remote Datajack Peak State ------------ > --- POWER ------------ Vortex Chain Reactor > --- PROPULSION ------- Cooled Nuclear Pulse Thruster Improved Diametric Drive Improved Diametric Drive Impulse Thruster Array > --- UTILITY ---------- Makeshift Sensor Array Experimental Signal Interpreter Experimental Terrain Scanner Experimental Targeting Computer Advanced Target Analyzer Experimental Core Analyzer Armor Integrity Analyzer Advanced Reaction Control System Experimental Phase Shifter Experimental Cloaking Device Advanced Thermal Defense Suite Experimental Hacking Suite Quantum Router > --- WEAPON ----------- Guided Remote Datajack Vibroblade Molecular Scythe > --- INVENTORY -------- Protomatter Core Reset Matrix Vortex Rail Railgun Hypervelocity Railgun Hypervelocity Railgun Improved Proton Missile Launcher [Rating: 188] Favorites ----------- Power Improved Deuterium Engine Engine Improved Deuterium Engine Power Core Micro Fission Core Reactor Vortex Chain Reactor Propulsion Xenon Bombardment Thruster Wheel Wheel Hover Unit Antigrav System Flight Unit Xenon Bombardment Thruster Utility Advanced Targeting Computer Device Makeshift Sensor Array Storage Experimental Energy Well Processor Advanced Targeting Computer Hackware Experimental Hacking Suite Protection Centrium Light Armor Plating Weapon Makeshift Axe Energy Gun EM Pulse Gun Ballistic Gun Coil Gun Launcher Improved Proton Missile Launcher Special Weapon Guided Remote Datajack Impact Weapon Mace Slashing Weapon Makeshift Axe Piercing Weapon Spear Build | -11 -10 -10 -10 -9 -8 -7 -7 -7 -7 -6 -6 -6 -6 -6 -5 -5 -5 -5 -5 -4 -4 -4 -4 -4 -3 -3 -3 -3 -2 ------- Run | Scr Mat Min Exi Min Mat Fac Low Low Dat Pro Fac Low Low Zio Pro Fac Upp Upp War Pro Fac Upp Upp Zhi Pro Res Arm Lab Res Slots Evolved 18 | 3 . 1 . 1 1 1 . 2 . 2 1 1 1 . . 1 . . 2 . . . . 1 . . . . . Power 1 | . . . . . . . . . . . 1 . . . . . . . . . . . . . . . . . . Propulsion 4 | 1 . . . . . . . . . 1 . . . . . . . . 2 . . . . . . . . . . Utility 11 | 1 . 1 . 1 1 . . 2 . 1 . 1 1 . . 1 . . . . . . . 1 . . . . . Weapon 2 | 1 . . . . . 1 . . . . . . . . . . . . . . . . . . . . . . . Parts Attached 214 | 5 4 1 . 7 7 7 5 22 . 8 3 5 9 3 11 6 . 1 18 7 9 1 4 11 7 11 21 12 9 Power 7 | . . . . 1 1 1 . . . . 2 . 1 . . . . . 1 . . . . . . . . . . Engine 3 | . . . . . . 1 . . . . 2 . . . . . . . . . . . . . . . . . . Core 3 | . . . . 1 1 . . . . . . . 1 . . . . . . . . . . . . . . . . Reactor 1 | . . . . . . . . . . . . . . . . . . . 1 . . . . . . . . . . Propulsion 32 | 2 3 . . 5 1 1 1 . . 2 . . 2 . 3 2 . 1 3 . 1 . . 1 . 2 . . 2 Treads . | . . . . . . . . . . . . . . . . . . . . . . . . . . . . . . Leg . | . . . . . . . . . . . . . . . . . . . . . . . . . . . . . . Wheel 4 | 2 . . . . . . . . . . . . 2 . . . . . . . . . . . . . . . . Hover 2 | . 1 . . . . . . . . . . . . . 1 . . . . . . . . . . . . . . Flight 26 | . 2 . . 5 1 1 1 . . 2 . . . . 2 2 . 1 3 . 1 . . 1 . 2 . . 2 Utility 63 | 2 1 1 . 1 4 . . 2 . 1 . 1 4 3 1 1 . . 7 . 2 . 2 5 . 5 9 6 5 Device 42 | 1 1 . . . 3 . . 2 . 1 . . 3 . . 1 . . 5 . 2 . 2 4 . 2 8 3 4 Storage 1 | . . . . . . . . . . . . . . . . . . . . . . . . . . . . 1 . Processor 12 | 1 . 1 . 1 1 . . . . . . 1 1 2 1 . . . 1 . . . . . . 1 . . 1 Hackware 5 | . . . . . . . . . . . . . . 1 . . . . 1 . . . . . . 1 . 2 . Protection 3 | . . . . . . . . . . . . . . . . . . . . . . . . 1 . 1 1 . . Artifact . | . . . . . . . . . . . . . . . . . . . . . . . . . . . . . . Weapon 112 | 1 . . . . 1 5 4 20 . 5 1 4 2 . 7 3 . . 7 7 6 1 2 5 7 4 12 6 2 Energy Gun 7 | . . . . . . . . . . 1 . . . . . . . . . . 2 . 1 1 1 1 . . . Energy Cannon . | . . . . . . . . . . . . . . . . . . . . . . . . . . . . . . Ballistic Gun 34 | 1 . . . . 1 1 . 2 . 2 . 1 1 . 3 2 . . 3 3 2 . 1 1 1 2 5 1 1 Ballistic Cannon . | . . . . . . . . . . . . . . . . . . . . . . . . . . . . . . Launcher 25 | . . . . . . 1 2 9 . 1 . 1 1 . 3 . . . . 3 . . . 2 2 . . . . Special Weapon 6 | . . . . . . . . . . . . . . . 1 . . . 2 . . . . . . . 1 2 . Impact Weapon 2 | . . . . . . 2 . . . . . . . . . . . . . . . . . . . . . . . Slashing Weapon 32 | . . . . . . . . 6 . 1 1 2 . . . 1 . . 2 1 2 1 . 1 3 1 6 3 1 Piercing Weapon 6 | . . . . . . 1 2 3 . . . . . . . . . . . . . . . . . . . . . Special Melee Weapon . | . . . . . . . . . . . . . . . . . . . . . . . . . . . . . . Unidentified Prototypes 33 | . . . . . . 1 . 1 . . . . 1 3 . . . . 6 . 1 . . 4 . 3 5 5 3 Parts Lost 9 | . . . . . . . . . . . . 1 3 . . . . . . . . . . . . 1 . . 4 Power 2 | . . . . . . . . . . . . . 1 . . . . . . . . . . . . . . . 1 Propulsion 1 | . . . . . . . . . . . . . 1 . . . . . . . . . . . . . . . . Utility 5 | . . . . . . . . . . . . . 1 . . . . . . . . . . . . 1 . . 3 Weapon 1 | . . . . . . . . . . . . 1 . . . . . . . . . . . . . . . . . Highest Loss Streak 2 | . . . . . . . . . . . . 1 1 . . . . . . . . . . . . 1 . . 2 Average Slot Usage (%) 88 | . 99 100 100 100 100 99 100 90 84 84 86 86 84 89 89 89 90 90 86 86 81 81 81 80 82 83 89 88 85 Engine 4 | . 14 13 12 2 . 4 9 7 7 7 8 11 5 5 5 5 5 5 1 . . . . . . . . . . Core 2 | . . . . 9 10 5 . . . . . . 3 5 5 5 5 5 1 . . . . . . . . . . Reactor 1 | . . . . . . . . . . . . . . . . . . . 3 4 4 4 4 4 4 4 4 4 3 Flight 16 | . 13 27 25 24 21 18 18 16 15 14 19 17 12 10 12 15 15 15 20 22 18 18 18 17 17 17 17 16 16 Device 18 | . 26 27 25 24 21 18 18 16 15 20 19 17 15 21 16 16 20 20 14 13 13 13 13 13 17 17 22 25 23 Processor 22 | . . 3 12 12 23 27 27 24 23 21 19 21 26 24 24 25 25 25 22 22 22 22 22 21 21 21 21 20 20 Hackware 3 | . . . . . . . . . . . . . . 1 5 5 5 5 7 9 9 9 9 8 8 6 8 8 8 Energy Gun 2 | . 14 13 12 11 10 9 9 7 7 6 6 1 . . . . . . . . 1 2 . . . . . . . Ballistic Gun 8 | . 14 13 12 11 10 8 9 8 15 10 6 5 5 5 5 11 10 10 10 11 9 9 11 10 9 11 9 1 . Launcher 2 | . . . . . . . . 1 . 3 4 5 5 5 4 1 . . . 1 . . . . 2 . . . . Slashing Weapon 2 | . . . . . . . . 4 . . 1 3 5 5 5 2 5 5 2 . 1 1 . 2 . . 2 7 8 Naked Turns . | . . . . . . . . . . . . . . . . . . . . . . . . . . . . . . Heaviest Build 75 | 8 9 9 9 11 12 19 21 38 35 40 43 46 47 47 48 48 46 46 67 70 72 71 71 68 72 73 71 75 69 Greatest Support 79 | 37 37 9 9 16 18 19 19 39 39 40 47 47 47 35 35 50 50 51 69 69 75 75 75 75 75 75 75 75 79 Greatest Overweight (x) 2 | 1 . . . . . 1 1 1 . 1 . . 1 1 1 1 1 . 2 1 . . . 1 . . . . 2 Average Overweight (x) . | . . . . . . . . . . . . . . 1 1 . . . . . . . . . . . . . . Largest Inventory Capacity 7 | 2 2 2 2 3 4 4 4 4 4 4 4 4 4 5 6 6 6 6 7 7 7 7 7 7 7 7 7 7 7 Average Capacity 5 | 1 2 2 2 2 3 4 4 4 4 4 4 4 4 4 5 6 6 6 6 7 7 7 7 7 7 7 7 7 7 Most Carried 7 | 1 2 2 2 3 4 4 4 4 4 4 4 4 4 5 6 6 6 6 7 7 7 7 7 7 7 7 7 7 7 Average Carried 5 | . 1 1 2 2 3 3 3 3 4 3 3 3 3 4 5 6 5 6 6 7 6 7 6 6 6 6 6 6 6 Final Capacity 7 | 2 2 2 2 3 4 4 4 4 4 4 4 4 4 5 6 6 6 6 7 7 7 7 7 7 7 7 7 7 7 Final Carried 7 | 1 2 2 2 3 4 4 4 4 4 3 4 4 3 5 6 6 6 6 7 7 7 7 6 7 7 7 7 7 6 Class Distribution -------------------- 24% | Hacker-Scout 23% | Derelict-Mutant 19% | Derelict-Scout 8% | Scout 6% | Scavenger-Scout 4% | Hacker-Ninja 3% | Mutant Dominant Class ---------------- Scavenger-Scout | -10/Materials Scavenger-Scout | -10/Mines Scavenger-Scout | -10/Exiles Scavenger-Scout | -9/Mines Scout | -8/Materials Scout | -7/Factory Scout | -7/Lower Caves Mutant | -7/Lower Caves Mutant | -7/Data Miner Derelict-Scout | -6/Proximity Caves Derelict-Scout | -6/Factory Derelict-Scout | -6/Lower Caves Derelict-Mutant | -6/Lower Caves Derelict-Mutant | -6/Zion Derelict-Mutant | -5/Proximity Caves Derelict-Gunner | -5/Factory Derelict-Scout | -5/Upper Caves Derelict-Scout | -5/Upper Caves Hacker-Scout | -5/Warlord Hacker-Scout | -4/Proximity Caves Hacker-Scout | -4/Factory Hacker-Scout | -4/Upper Caves Hacker-Scout | -4/Upper Caves Hacker-Scout | -4/Zhirov Hacker-Scout | -3/Proximity Caves Hacker-Scout | -3/Research Hacker-Ninja | -3/Armory Hacker-Scout | -3/Lab Hacker-Ninja | -2/Research Resources | -11 -10 -10 -10 -9 -8 -7 -7 -7 -7 -6 -6 -6 -6 -6 -5 -5 -5 -5 -5 -4 -4 -4 -4 -4 -3 -3 -3 -3 -2 ----------- Run | Scr Mat Min Exi Min Mat Fac Low Low Dat Pro Fac Low Low Zio Pro Fac Upp Upp War Pro Fac Upp Upp Zhi Pro Res Arm Lab Res Matter Collected 9840 | 262 73 55 . 124 91 191 105 1284 . 1494 92 329 459 120 352 218 68 10 497 464 627 . 152 110 624 880 672 91 396 Remotely . | . . . . . . . . . . . . . . . . . . . . . . . . . . . . . . Salvage Created 12570 | 101 252 229 . 185 246 360 195 984 . 872 254 975 418 . 1019 286 180 93 300 911 833 . 159 141 1357 1199 604 91 326 Parts 671 | 4 19 9 . 17 14 17 9 46 . 48 13 30 42 . 44 28 2 2 30 40 45 . 11 6 55 76 38 16 10 Haulers Intercepted 5 | . 1 . . . . 1 . . . . . . . . . . . . . . 2 . . . . . . . 1 Recyclers Shooed 2 | . . . . . . . . . . . . . . . . . . . . . . . . . . 2 . . . Parts Field Recycled . | . . . . . . . . . . . . . . . . . . . . . . . . . . . . . . Retrieved Matter . | . . . . . . . . . . . . . . . . . . . . . . . . . . . . . . Parts Self-Destructed 242 | . . . . . . . 7 21 . 20 . 6 28 . 22 . 7 2 89 6 . . 10 6 18 . . . . Prevented 177 | . . . . . . . 2 26 . 27 . 24 18 . 29 . . . 14 7 . . 1 . 29 . . . . Kills | -11 -10 -10 -10 -9 -8 -7 -7 -7 -7 -6 -6 -6 -6 -6 -5 -5 -5 -5 -5 -4 -4 -4 -4 -4 -3 -3 -3 -3 -2 ------- Run | Scr Mat Min Exi Min Mat Fac Low Low Dat Pro Fac Low Low Zio Pro Fac Upp Upp War Pro Fac Upp Upp Zhi Pro Res Arm Lab Res Combat Hostiles Destroyed 221 | . 4 3 . 9 5 5 4 22 . 22 1 16 24 . 18 5 . . 11 16 9 . 3 . 15 14 9 4 2 Melee 14 | . . . . . . . . 1 . . . 1 . . . . . . . . . . . . . . 6 4 2 Guns 119 | . 4 3 . 8 4 3 1 9 . 5 1 3 10 . 4 4 . . 11 11 9 . 3 . 9 14 3 . . AOE 65 | . . . . 1 1 2 3 10 . 12 . 7 11 . 10 1 . . . 5 . . . . 2 . . . . Classes Destroyed 21 | 2 4 1 . . 1 2 . 3 . 2 . . . . 1 1 . . 1 1 1 . . . . . . . 1 Worker 3 | . . . . . . 1 . . . . . . . . . . . . . . 1 . . . . 1 . . . Builder 8 | . . . . . . . . . . . . . . . . 4 . . . . 3 . . . . 1 . . . Tunneler 2 | 1 . . . . . . . . . . . . . . . 1 . . . . . . . . . . . . . Hauler 5 | . 1 . . . . 1 . . . . . . . . . . . . . . 2 . . . . . . . 1 Recycler 4 | 1 . . . . . . . . . . 1 . . . . . . . . . . . . . . 1 . . 1 Minesweeper 1 | . . . . . . . . . . . . . . . 1 . . . . . . . . . . . . . . Mechanic 1 | . . . . . . . . 1 . . . . . . . . . . . . . . . . . . . . . Operator 2 | . . . . . . 1 . . . . 1 . . . . . . . . . . . . . . . . . . Watcher 12 | . 1 . . . . 1 . . . . . . . . . 3 . . . . 3 . . . . 3 1 . . Swarmer 60 | . 3 . . 6 . . 2 7 . 8 . 5 12 . 8 . . . 2 5 . . . . . 2 . . . Grunt 73 | . 1 2 . 3 2 2 2 11 . 7 . 6 9 . 8 2 . . 4 2 2 . . . 7 . . 3 . Brawler 6 | . . . . . . . . 1 . 1 . 1 . . 1 . . . 1 . . . . . . . . . 1 Duelist 9 | . . . . . . . . 2 . 2 . . . . . . . . . 1 . . . . 1 . 3 . . Protector 3 | . . . . . . . . . . 1 . . . . . . . . 2 . . . . . . . . . . Sentry 24 | . . 1 . . 2 1 . 1 . 1 1 1 2 . . 1 . . . . 3 . 1 . 1 6 2 . . Hunter 23 | . . . . . 1 2 . . . 1 . 3 1 . 1 2 . . 1 3 2 . . . 4 2 . . . Programmer 14 | . . . . . . . . . . . . . . . . . . . . . 2 . 2 . 2 4 4 . . Behemoth 1 | . . . . . . . . . . 1 . . . . . . . . . . . . . . . . . . . Striker 1 | . . . . . . . . . . . . . . . . . . . . . . . . . . . . . 1 Executioner 1 | . . . . . . . . . . . . . . . . . . . 1 . . . . . . . . . . Thug 2 | . . . . . . . . . . . . . . . . . . . 1 1 . . . . . . . . . Savage 4 | . . . . . . . . . . . . . . . . . . . . 4 . . . . . . . . . Mutant 1 | . . . . . . . . . . . . . . . . . . . . 1 . . . . . . . . . Best Kill Streak 9 | 2 5 2 . 4 2 5 2 6 . 5 1 3 6 . 5 5 . . 4 9 5 . 1 . 3 5 2 2 2 Combat Bots Only 9 | . 3 2 . 4 2 4 2 6 . 5 1 3 6 . 5 2 . . 4 9 3 . 1 . 3 5 2 2 1 Max Kills in Single Turn 3 | 1 2 1 . 2 1 1 1 3 . 2 1 2 2 . 2 2 . . 2 2 2 . 1 . 2 2 1 1 1 Gunslinging 1 | . 1 . . 1 . . . . . . . . . . . . . . . 1 1 . . . 1 . . . . Exploded 2 | . . . . 1 1 1 1 2 . 2 . 2 2 . 2 1 . . . 2 . . . . 1 . . . . Melee 1 | . . . . . . . . 1 . . . 1 . . . . . . . . . . . . . . 1 1 1 Uniques/NPCs Destroyed 1 | . . . . . . . . . . . . . . . . . . . . . . . . . . . . 1 . A5 (-3/Lab) Combat | -11 -10 -10 -10 -9 -8 -7 -7 -7 -7 -6 -6 -6 -6 -6 -5 -5 -5 -5 -5 -4 -4 -4 -4 -4 -3 -3 -3 -3 -2 -------- Run | Scr Mat Min Exi Min Mat Fac Low Low Dat Pro Fac Low Low Zio Pro Fac Upp Upp War Pro Fac Upp Upp Zhi Pro Res Arm Lab Res Damage Taken 14975 | . 92 230 . 256 234 482 172 718 . 869 286 1126 915 . 540 293 55 . 181 443 561 . 116 . 1167 1251 554 595 3839 Core 12106 | . 76 193 . 198 195 406 143 588 . 730 220 921 751 . 437 248 43 . 145 341 444 . 92 . 949 970 428 476 3112 Absorbed by Shields 466 | . . . . . . . . . . . . . . . . . . . . 288 178 . . . . . . . . Redirected to Core 9576 | . 47 129 . 178 132 254 103 440 . 504 192 712 579 . 381 165 43 . 127 307 402 . 92 . 762 788 292 433 2514 Core Remaining (%) 88 | 100 . . . 60 100 . . . . 100 . . . . 96 . . . . 100 . . . . 48 . . 100 . Volleys Fired 609 | 4 11 15 . 18 20 20 8 45 . 47 13 40 54 . 38 18 . . 25 27 50 . 8 . 41 62 29 15 1 Largest 3 | 2 2 2 . 2 2 3 3 2 . 3 2 3 2 . 2 3 . . 3 3 3 . 3 . 3 3 3 3 1 Hottest 115 | 60 60 60 . 60 60 96 96 83 . 96 68 111 72 . 76 96 . . 96 109 113 . 110 . 110 110 115 115 40 Shots Fired 1343 | 8 22 30 . 36 40 42 17 72 . 89 26 66 86 . 50 52 . . 69 72 139 . 23 . 113 174 74 42 1 Gun 1171 | 8 22 30 . 36 40 40 13 55 . 66 26 36 51 . 29 52 . . 66 56 139 . 23 . 94 174 73 42 . Cannon . | . . . . . . . . . . . . . . . . . . . . . . . . . . . . . . Launcher 167 | . . . . . . 2 4 17 . 23 . 30 35 . 21 . . . . 16 . . . . 19 . . . . Special 5 | . . . . . . . . . . . . . . . . . . . 3 . . . . . . . 1 . 1 Kinetic 969 | 4 11 15 . 18 20 20 7 33 . 41 13 26 51 . 29 52 . . 66 56 112 . 19 . 93 168 73 42 . Thermal . | . . . . . . . . . . . . . . . . . . . . . . . . . . . . . . Explosive 16 | . . . . . . 2 2 1 . . . . 5 . . . . . . 6 . . . . . . . . . Electromagnetic 315 | 4 11 15 . 18 20 20 8 38 . 48 13 40 30 . 21 . . . . 10 . . . . 19 . . . . Entropic 38 | . . . . . . . . . . . . . . . . . . . . . 27 . 4 . 1 6 . . . Robot Hit Streak 26 | 8 15 9 . 6 8 11 3 13 . 19 7 10 25 . 7 7 . . 16 13 11 . 8 . 26 25 14 20 14 Robot Miss Streak 6 | . 3 1 . 4 3 2 3 3 . 2 2 1 3 . 3 3 . . 4 2 6 . 1 . 3 3 4 1 . Penetration Max 2 | . . . . . . . . 1 . 1 1 . 1 . . 1 . . 2 1 1 . . . 2 1 2 . . Secondary Targets 17 | . 1 . . 3 1 . . . . . . 1 . . . . . . 3 2 1 . . . 1 4 . . . Max Gunslinging Chain 1 | . 1 . . 1 1 . . . . . . 1 . . . . . . 1 1 1 . . . 1 1 . . . Shots Hit Robots 1010 | 8 14 22 . 21 28 35 7 51 . 65 20 53 51 . 41 33 5 1 52 41 78 . 16 4 79 128 84 51 22 Core Hits 629 | 2 8 8 . 12 14 21 7 46 . 44 12 29 46 . 34 19 3 1 33 43 44 . 5 3 45 68 42 31 9 Critical Hits 153 | . . . . 1 . . . 2 . 2 1 . 5 . 3 11 2 . 14 7 20 . 4 . 19 23 26 10 3 Critical Kills 48 | . . . . . . . . 1 . 1 1 . 3 . 1 4 . . 3 4 9 . 1 . 5 7 6 2 . Critical Parts Destroyed 72 | . . . . 1 . . . 1 . . . . 2 . 2 5 1 . 6 3 8 . 3 . 9 8 13 7 3 Melee Attacks 256 | . . . . . . 15 . 5 . . 1 12 2 . 8 4 9 6 13 6 9 2 . 4 1 12 51 48 48 Impact 15 | . . . . . . 15 . . . . . . . . . . . . . . . . . . . . . . . Slashing 241 | . . . . . . . . 5 . . 1 12 2 . 8 4 9 6 13 6 9 2 . 4 1 12 51 48 48 Piercing . | . . . . . . . . . . . . . . . . . . . . . . . . . . . . . . Sneak Attacks 10 | . . . . . . 2 . 1 . . . . . . . 1 . . . . . . . . . . . 1 5 Combat Hostiles 4 | . . . . . . . . 1 . . . . . . . . . . . . . . . . . . . 1 2 Follow-up Attacks 8 | . . . . . . . . . . . . . . . . . . . . . . . . . . . . 4 4 Damage Inflicted 32287 | 119 190 292 . 316 426 696 365 1979 . 2202 511 2269 2316 . 2656 1243 436 111 970 1713 1848 . 433 511 2506 2928 2068 1503 1680 Guns 15409 | 87 190 292 . 272 372 392 41 647 . 830 434 453 748 . 511 594 . . 970 760 1848 . 433 . 1442 2904 836 353 . Cannons . | . . . . . . . . . . . . . . . . . . . . . . . . . . . . . . Explosions 9856 | 32 . . . 44 54 159 324 1188 . 1372 77 1146 1568 . 1301 550 . . . 953 . . . . 1064 24 . . . Melee 7022 | . . . . . . 145 . 144 . . . 670 . . 844 99 436 111 . . . . . 511 . . 1232 1150 1680 Ramming . | . . . . . . . . . . . . . . . . . . . . . . . . . . . . . . Kinetic 12731 | 35 63 167 . 109 145 238 30 458 . 653 290 327 748 . 511 594 . . 970 760 996 . 314 . 1442 2692 836 353 . Thermal 978 | 32 . . . 44 54 . . 50 . 63 77 . . . 108 550 . . . . . . . . . . . . . Explosive 1629 | . . . . . . 159 219 103 . . . . 530 . . . . . . 618 . . . . . . . . . Electromagnetic 8744 | 52 127 125 . 163 227 154 116 1224 . 1486 144 1272 1038 . 1193 . . . . 335 . . . . 1064 24 . . . Impact 145 | . . . . . . 145 . . . . . . . . . . . . . . . . . . . . . . . Slashing 6877 | . . . . . . . . 144 . . . 670 . . 844 99 436 111 . . . . . 511 . . 1232 1150 1680 Piercing . | . . . . . . . . . . . . . . . . . . . . . . . . . . . . . . Entropic 1183 | . . . . . . . . . . . . . . . . . . . . . 852 . 119 . . 212 . . . Highest Corruption 12 | . 1 1 1 1 . . . . . . . . . . . . . . 2 1 3 3 3 3 3 4 5 12 6 Average Corruption 3 | . 1 1 1 1 . . . . . . . . . . . . . . 1 1 2 3 3 3 3 2 4 11 3 Corruption Purged . | . . . . . . . . . . . . . . . . . . . . . . . . . . . . . . Effects 92 | . . 2 1 . . . . . . . . . . . . . . . . 3 1 4 2 . 12 12 13 37 5 Message Errors 18 | . . 1 1 . . . . . . . . . . . . . . . . 2 1 . . . 1 3 3 5 1 Matter Fused 13 | . . . . . . . . . . . . . . . . . . . . . . 1 1 . 1 1 5 2 2 Heat Flow Errors 6 | . . . . . . . . . . . . . . . . . . . . . . . . . 4 1 . 1 . Energy Discharges 11 | . . . . . . . . . . . . . . . . . . . . . . . . . 2 1 3 4 1 Data Loss (minor) 6 | . . 1 . . . . . . . . . . . . . . . . . . . 2 . . . 1 . 1 1 Data Loss (major) 1 | . . . . . . . . . . . . . . . . . . . . . . . . . . . . 1 . Alerts 1 | . . . . . . . . . . . . . . . . . . . . . . . . . . . . 1 . Misdirections 7 | . . . . . . . . . . . . . . . . . . . . . . . . . . . . 7 . Targeting Errors 24 | . . . . . . . . . . . . . . . . . . . . 1 . 1 . . 4 4 2 12 . Weapon Failures 5 | . . . . . . . . . . . . . . . . . . . . . . . 1 . . 1 . 3 . Overload Shots . | . . . . . . . . . . . . . . . . . . . . . . . . . . . . . . Overflow Damage 1135 | . . . . . . 28 36 129 . . . 192 67 . 302 183 34 . . 13 . . . . 8 . 21 60 62 Projectiles . | . . . . . . . . . . . . . . . . . . . . . . . . . . . . . . Explosions 379 | . . . . . . . 36 24 . . . 38 67 . 10 183 . . . 13 . . . . 8 . . . . Melee 756 | . . . . . . 28 . 105 . . . 154 . . 292 . 34 . . . . . . . . . 21 60 62 Knockbacks . | . . . . . . . . . . . . . . . . . . . . . . . . . . . . . . Impact . | . . . . . . . . . . . . . . . . . . . . . . . . . . . . . . Kinetic . | . . . . . . . . . . . . . . . . . . . . . . . . . . . . . . Secondary . | . . . . . . . . . . . . . . . . . . . . . . . . . . . . . . Self-Inflicted Damage 273 | . . . . 34 . . . 17 . . . 24 51 . 27 45 . . . 41 . . . . 34 . . . . Shots 19 | . . . . 1 . . . 2 . . . 2 4 . 3 1 . . . 3 . . . . 3 . . . . Rammed . | . . . . . . . . . . . . . . . . . . . . . . . . . . . . . . Targets Rammed . | . . . . . . . . . . . . . . . . . . . . . . . . . . . . . . Kicked . | . . . . . . . . . . . . . . . . . . . . . . . . . . . . . . Crushed . | . . . . . . . . . . . . . . . . . . . . . . . . . . . . . . Highest Temperature 348 | . 15 105 . 118 188 231 118 199 . 346 262 348 129 . 173 176 . . 288 117 169 . 102 . 275 274 98 310 14 Average Temperature 73 | . 6 40 . 45 57 81 66 48 . 85 116 106 44 . 57 61 . . 85 49 59 . 41 . 87 89 32 141 14 Received Heat Transfer 2224 | . . 117 . 75 108 87 . 261 . 231 96 210 189 . 156 45 . . 63 29 65 . . . 165 144 90 48 45 Effects 6 | . . . . . . 1 . . . . . . . . . . . . . . . . . . 1 4 . . . Energy Bleed 3 | . . . . . . 1 . . . . . . . . . . . . . . . . . . 1 1 . . . Interference 3 | . . . . . . . . . . . . . . . . . . . . . . . . . . 3 . . . Siege Activations . | . . . . . . . . . . . . . . . . . . . . . . . . . . . . . . Robots Corrupted 24 | . . . . . . . . 2 . 5 . 5 3 . 5 . . . . . . . . . 4 . . . . Combat Hostiles 23 | . . . . . . . . 2 . 5 . 5 3 . 4 . . . . . . . . . 4 . . . . Parts Fried 51 | . 1 . . . . . . 3 . 12 . 12 6 . 7 . . . . 2 . . . . 7 . . . 1 Impact Corruptions 1 | . . . . . . 1 . . . . . . . . . . . . . . . . . . . . . . . Robots Melted . | . . . . . . . . . . . . . . . . . . . . . . . . . . . . . . Combat Hostiles . | . . . . . . . . . . . . . . . . . . . . . . . . . . . . . . Parts Melted 4 | . . . . . . . . 1 . . . . . . . . . . 3 . . . . . . . . . . Heat Transferred 950 | 50 . . . 50 50 . . 50 . 150 100 . . . 100 400 . . . . . . . . . . . . . Parts Sabotaged . | . . . . . . . . . . . . . . . . . . . . . . . . . . . . . . Parts Stolen . | . . . . . . . . . . . . . . . . . . . . . . . . . . . . . . Parts Stripped . | . . . . . . . . . . . . . . . . . . . . . . . . . . . . . . Power Chain Reactions 13 | 1 . . . 1 1 . . 3 . 2 1 1 . . 2 . . . . 1 . . . . . . . . . Missiles Intercepted . | . . . . . . . . . . . . . . . . . . . . . . . . . . . . . . Alert | -11 -10 -10 -10 -9 -8 -7 -7 -7 -7 -6 -6 -6 -6 -6 -5 -5 -5 -5 -5 -4 -4 -4 -4 -4 -3 -3 -3 -3 -2 ------- Run | Scr Mat Min Exi Min Mat Fac Low Low Dat Pro Fac Low Low Zio Pro Fac Upp Upp War Pro Fac Upp Upp Zhi Pro Res Arm Lab Res Peak Influence 746 | 10 203 279 . 213 351 418 . . . . 354 . . . . 746 . . . . 527 . . . . 721 590 . 208 Average Influence 277 | 5 132 205 . 116 211 220 . . . . 276 . . . . 453 . . . . 285 . . . . 403 380 . 130 Maximum Alert Level 3 | . 1 1 . 1 1 2 . . . . 1 . . . . 3 . . . . 2 . . . . 3 2 . 1 Low Security (%) 37 | 100 72 44 . 67 43 54 . . . . . . . . . 28 . . . . 13 . . . . 26 . . 88 Level 1 39 | . 27 55 . 32 56 42 . . . . 100 . . . . 6 . . . . 71 . . . . 21 56 . 11 Level 2 19 | . . . . . . 2 . . . . . . . . . 47 . . . . 14 . . . . 43 43 . . Level 3 3 | . . . . . . . . . . . . . . . . 17 . . . . . . . . . 9 . . . Level 4 . | . . . . . . . . . . . . . . . . . . . . . . . . . . . . . . Level 5 . | . . . . . . . . . . . . . . . . . . . . . . . . . . . . . . High Security . | . . . . . . . . . . . . . . . . . . . . . . . . . . . . . . Max Security . | . . . . . . . . . . . . . . . . . . . . . . . . . . . . . . Squads Dispatched 39 | . 1 . . 1 2 5 . 1 . 1 1 . 1 . . 5 . . . . 5 . . . . 6 3 . 7 Investigation 12 | . . . . 1 1 2 . . . . . . 1 . . . . . . . 1 . . . . 5 1 . . Extermination 4 | . . . . . . 1 . . . . . . . . . . . . . . 1 . . . . 1 1 . . Reinforcement 13 | . 1 . . . 1 2 . . . . 1 . . . . 4 . . . . 3 . . . . . 1 . . Assault 3 | . . . . . . . . 1 . 1 . . . . . 1 . . . . . . . . . . . . . Garrison . | . . . . . . . . . . . . . . . . . . . . . . . . . . . . . . Intercept 7 | . . . . . . . . . . . . . . . . . . . . . . . . . . . . . 7 Construction Impeded 2 | . . . . . . . . . . . . . . . . 2 . . . . . . . . . . . . . Haulers Reinforced 2 | . . . . . . 1 . . . . . . . . . . . . . . 1 . . . . . . . . Stealth | -11 -10 -10 -10 -9 -8 -7 -7 -7 -7 -6 -6 -6 -6 -6 -5 -5 -5 -5 -5 -4 -4 -4 -4 -4 -3 -3 -3 -3 -2 --------- Run | Scr Mat Min Exi Min Mat Fac Low Low Dat Pro Fac Low Low Zio Pro Fac Upp Upp War Pro Fac Upp Upp Zhi Pro Res Arm Lab Res Distress Signals 12 | . . . . . 1 . . . . . . . . . . . . . . . 1 . . . . 1 1 . 8 Communications Jammed . | . . . . . . . . . . . . . . . . . . . . . . . . . . . . . . Distress Signals . | . . . . . . . . . . . . . . . . . . . . . . . . . . . . . . Times Spotted 369 | . 7 4 . 10 10 13 5 31 . 34 7 19 27 . 26 11 2 2 23 17 16 . 3 . 19 24 27 3 29 Peak Tracking Total 13 | . 3 2 . 4 3 5 4 6 . 7 2 4 6 . 6 3 2 4 13 5 3 . 2 . 4 6 13 2 13 Tactical Retreats 42 | . 1 . . 1 1 . . 7 . 9 . 3 3 . 4 . . . 2 . . . . . 2 . 4 . 5 Traps | -11 -10 -10 -10 -9 -8 -7 -7 -7 -7 -6 -6 -6 -6 -6 -5 -5 -5 -5 -5 -4 -4 -4 -4 -4 -3 -3 -3 -3 -2 ------- Run | Scr Mat Min Exi Min Mat Fac Low Low Dat Pro Fac Low Low Zio Pro Fac Upp Upp War Pro Fac Upp Upp Zhi Pro Res Arm Lab Res Traps Triggered 4 | . . . . . 1 . . . . . . . . . 1 . . . . . . . . . . 2 . . . Indirectly 2 | . . . . . . . . . . . . . . . 1 . . . . . . . . . . 1 . . . Trap Hack Attempts . | . . . . . . . . . . . . . . . . . . . . . . . . . . . . . . Triggered . | . . . . . . . . . . . . . . . . . . . . . . . . . . . . . . Disarmed . | . . . . . . . . . . . . . . . . . . . . . . . . . . . . . . Reprogrammed . | . . . . . . . . . . . . . . . . . . . . . . . . . . . . . . Reused . | . . . . . . . . . . . . . . . . . . . . . . . . . . . . . . Traps Extracted . | . . . . . . . . . . . . . . . . . . . . . . . . . . . . . . Installed . | . . . . . . . . . . . . . . . . . . . . . . . . . . . . . . Triggered 8 | . . . . . . . . . . . . . . . . . . 1 5 1 . . . . 1 . . . . Machines | -11 -10 -10 -10 -9 -8 -7 -7 -7 -7 -6 -6 -6 -6 -6 -5 -5 -5 -5 -5 -4 -4 -4 -4 -4 -3 -3 -3 -3 -2 ---------- Run | Scr Mat Min Exi Min Mat Fac Low Low Dat Pro Fac Low Low Zio Pro Fac Upp Upp War Pro Fac Upp Upp Zhi Pro Res Arm Lab Res Machines Disabled 33 | . . 1 . . . 1 . 1 . 1 . . 2 . . 7 . . 2 . 3 . . . . 1 5 9 . Max in Single Turn 3 | . . 1 . . . . . 1 . 1 . . 1 . . 3 . . 1 . 1 . . . . 1 1 1 . Machines Sabotaged . | . . . . . . . . . . . . . . . . . . . . . . . . . . . . . . Garrisons Compromised . | . . . . . . . . . . . . . . . . . . . . . . . . . . . . . . Overloaded Fab Kills . | . . . . . . . . . . . . . . . . . . . . . . . . . . . . . . Fab Network Shutdowns . | . . . . . . . . . . . . . . . . . . . . . . . . . . . . . . Hacking | -11 -10 -10 -10 -9 -8 -7 -7 -7 -7 -6 -6 -6 -6 -6 -5 -5 -5 -5 -5 -4 -4 -4 -4 -4 -3 -3 -3 -3 -2 --------- Run | Scr Mat Min Exi Min Mat Fac Low Low Dat Pro Fac Low Low Zio Pro Fac Upp Upp War Pro Fac Upp Upp Zhi Pro Res Arm Lab Res Machines Accessed 55 | . 3 . 1 1 4 4 1 1 4 . 3 2 2 . 1 2 . . 3 . 3 1 . 4 . 4 6 1 4 Terminals 29 | . 2 . . . 3 4 . . . . 2 1 1 . 1 2 . . . . 2 1 . . . 4 3 . 3 Fabricators 2 | . . . . . . . . . . . 1 . . . . . . . . . . . . . . . 1 . . Repair Stations 1 | . . . . . . . . . . . . . . . . . . . . . . . . . . . 1 . . Recycling Units 4 | . 1 . . . 1 . . . . . . . . . . . . . . . 1 . . . . . 1 . . Scanalyzers . | . . . . . . . . . . . . . . . . . . . . . . . . . . . . . . Garrison Access 1 | . . . . . . . . . . . . . . . . . . . . . . . . . . . . . 1 Total Hacks 177 | . 9 . 1 1 15 12 1 1 26 . 7 5 7 . 2 4 . . 4 . 12 2 . 17 . 15 19 1 16 Successful 131 | . 6 . 1 1 8 5 1 1 26 . 3 5 7 . 2 1 . . 4 . 10 2 . 17 . 12 14 1 4 Failed 46 | . 3 . . . 7 7 . . . . 4 . . . . 3 . . . . 2 . . . . 3 5 . 12 Catastrophic 6 | . 2 . . . 1 2 . . . . . . . . . . . . . . . . . . . . . . 1 Database Lockouts . | . . . . . . . . . . . . . . . . . . . . . . . . . . . . . . Manual 77 | . 7 . . . 13 4 . . . . 3 . . . . 3 . . 1 . 11 . . . . 12 11 1 11 Terminals 105 | . 6 . . . 13 12 . . . . 5 4 6 . 2 4 . . . . 10 2 . . . 15 12 . 14 Fabricators 4 | . . . . . . . . . . . 2 . . . . . . . . . . . . . . . 2 . . Repair Stations 3 | . . . . . . . . . . . . . . . . . . . . . . . . . . . 3 . . Recycling Units 9 | . 3 . . . 2 . . . . . . . . . . . . . . . 2 . . . . . 2 . . Scanalyzers . | . . . . . . . . . . . . . . . . . . . . . . . . . . . . . . Garrison Access 2 | . . . . . . . . . . . . . . . . . . . . . . . . . . . . . 2 Terminal Hacks 99 | . 2 . 1 1 4 3 1 1 26 . 2 5 7 . 2 1 . . 4 . 5 2 . 17 . 7 4 1 3 Record 34 | . . . 1 . . . . . 11 . . 4 6 . 2 . . . 2 . . 2 . 5 . . . 1 . Part Schematic 10 | . . . . . . . . . 6 . . . . . . . . . . . . . . 4 . . . . . Robot Schematic 6 | . . . . . . . . . 6 . . . . . . . . . . . . . . . . . . . . Robot Analysis 4 | . . . . . . . . . . . . . . . . . . . . . . . . 4 . . . . . Prototype ID Bank 12 | . . . . . 1 . . . 3 . 1 . . . . . . . . . 1 . . 4 . 1 1 . . Open Door 7 | . . . . 1 . . 1 1 . . . 1 1 . . . . . 2 . . . . . . . . . . Level Access Points 1 | . . . . . . . . . . . . . . . . . . . . . . . . . . . . . 1 Branch Access Points 6 | . 1 . . . 1 1 . . . . . . . . . . . . . . 1 . . . . 1 . . 1 Emergency Access Points 1 | . . . . . 1 . . . . . . . . . . . . . . . . . . . . . . . . Machine Index 1 | . . . . . . . . . . . . . . . . . . . . . . . . . . 1 . . . Terminal Index 1 | . . . . . . . . . . . . . . . . . . . . . . . . . . 1 . . . Recycling Unit Index 1 | . 1 . . . . . . . . . . . . . . . . . . . . . . . . . . . . Alert Level 4 | . . . . . . . . . . . . . . . . . . . . . 1 . . . . 2 1 . . Unreport Threat 8 | . . . . . 1 2 . . . . . . . . . 1 . . . . 2 . . . . . 2 . . Recall Investigation 1 | . . . . . . . . . . . . . . . . . . . . . . . . . . 1 . . . Recall Reinforcements 1 | . . . . . . . . . . . 1 . . . . . . . . . . . . . . . . . . Hauler Manifests 1 | . . . . . . . . . . . . . . . . . . . . . . . . . . . . . 1 Fabricator Hacks 2 | . . . . . . . . . . . . . . . . . . . . . . . . . . . 2 . . Load Schematic 1 | . . . . . . . . . . . . . . . . . . . . . . . . . . . 1 . . Build 1 | . . . . . . . . . . . . . . . . . . . . . . . . . . . 1 . . Repair Station Hacks 2 | . . . . . . . . . . . . . . . . . . . . . . . . . . . 2 . . Scan Component 1 | . . . . . . . . . . . . . . . . . . . . . . . . . . . 1 . . Repair 1 | . . . . . . . . . . . . . . . . . . . . . . . . . . . 1 . . Recycling Unit Hacks 4 | . 1 . . . 1 . . . . . . . . . . . . . . . 1 . . . . . 1 . . Report Inventory 4 | . 1 . . . 1 . . . . . . . . . . . . . . . 1 . . . . . 1 . . Scanalyzer . | . . . . . . . . . . . . . . . . . . . . . . . . . . . . . . Garrison Access Hacks . | . . . . . . . . . . . . . . . . . . . . . . . . . . . . . . Unauthorized Hacks 62 | . 7 . . . 9 6 . . . . 2 . . . . 1 . . . . 8 . . . . 11 14 . 4 Terminals 20 | . 3 . . . 2 2 . . . . 1 . . . . . . . . . 3 . . . . 5 4 . . Track 2 | . 1 . . . . . . . . . . . . . . . . . . . 1 . . . . . . . . Assimilate 5 | . . . . . . 2 . . . . . . . . . . . . . . . . . . . 2 1 . . Botnet 6 | . 1 . . . 1 . . . . . . . . . . . . . . . 1 . . . . 2 1 . . Detonate 2 | . . . . . . . . . . . . . . . . . . . . . . . . . . . 2 . . Operators 5 | . 1 . . . 1 . . . . . 1 . . . . . . . . . 1 . . . . 1 . . . Fabricators . | . . . . . . . . . . . . . . . . . . . . . . . . . . . . . . Repair Stations 1 | . . . . . . . . . . . . . . . . . . . . . . . . . . . 1 . . Mechanics 1 | . . . . . . . . . . . . . . . . . . . . . . . . . . . 1 . . Recycling Units 2 | . . . . . 1 . . . . . . . . . . . . . . . 1 . . . . . . . . Mask 1 | . . . . . . . . . . . . . . . . . . . . . 1 . . . . . . . . Tunnel 1 | . . . . . 1 . . . . . . . . . . . . . . . . . . . . . . . . Scanalyzers . | . . . . . . . . . . . . . . . . . . . . . . . . . . . . . . Garrison Access 1 | . . . . . . . . . . . . . . . . . . . . . . . . . . . . . 1 Reprogram 1 | . . . . . . . . . . . . . . . . . . . . . . . . . . . . . 1 Data Cores Recovered 2 | . . . . . . 1 . . . . 1 . . . . . . . . . . . . . . . . . . Used . | . . . . . . . . . . . . . . . . . . . . . . . . . . . . . . Hacking Detections 33 | . 3 . . . 3 4 . . . . 3 1 1 . . 2 . . . . 2 1 . . . 4 6 . 3 Full Trace Events 12 | . 2 . . . 1 2 . . . . . 1 1 . . . . . . . 1 . . . . 3 1 . . Feedback Events 2 | . 1 . . . . . . . . . . . . . . . . . . . . . . . . 1 . . . Corruption 1 | . 1 . . . . . . . . . . . . . . . . . . . . . . . . . . . . Hackware Fried 1 | . . . . . . . . . . . . . . . . . . . . . . . . . . 1 . . . Feedback Blocked . | . . . . . . . . . . . . . . . . . . . . . . . . . . . . . . Robot Schematics Acquired 6 | . . . . . . . . . 6 . . . . . . . . . . . . . . . . . . . . Robots Built . | . . . . . . . . . . . . . . . . . . . . . . . . . . . . . . Matter . | . . . . . . . . . . . . . . . . . . . . . . . . . . . . . . Time . | . . . . . . . . . . . . . . . . . . . . . . . . . . . . . . Total Robot Build Rating . | . . . . . . . . . . . . . . . . . . . . . . . . . . . . . . Part Schematics Acquired 10 | . . . . . . . . . 6 . . . . . . . . . . . . . . 4 . . . . . Parts Built 1 | . . . . . . . . . . . . . . . . . . . . . . . . . . . 1 . . Matter 285 | . . . . . . . . . . . . . . . . . . . . . . . . . . . 285 . . Time 152 | . . . . . . . . . . . . . . . . . . . . . . . . . . . 152 . . Total Part Build Rating 5 | . . . . . . . . . . . . . . . . . . . . . . . . . . . 5 . . Parts Repaired 1 | . . . . . . . . . . . . . . . . . . . . . . . . . . . 1 . . Time 13 | . . . . . . . . . . . . . . . . . . . . . . . . . . . 13 . . Parts Recycled . | . . . . . . . . . . . . . . . . . . . . . . . . . . . . . . Recycled Matter . | . . . . . . . . . . . . . . . . . . . . . . . . . . . . . . Retrieved Matter . | . . . . . . . . . . . . . . . . . . . . . . . . . . . . . . Retrieved Components . | . . . . . . . . . . . . . . . . . . . . . . . . . . . . . . Parts Scanalyzed . | . . . . . . . . . . . . . . . . . . . . . . . . . . . . . . Part Schematics Acquired . | . . . . . . . . . . . . . . . . . . . . . . . . . . . . . . Parts Damaged . | . . . . . . . . . . . . . . . . . . . . . . . . . . . . . . Bothacking | -11 -10 -10 -10 -9 -8 -7 -7 -7 -7 -6 -6 -6 -6 -6 -5 -5 -5 -5 -5 -4 -4 -4 -4 -4 -3 -3 -3 -3 -2 ------------ Run | Scr Mat Min Exi Min Mat Fac Low Low Dat Pro Fac Low Low Zio Pro Fac Upp Upp War Pro Fac Upp Upp Zhi Pro Res Arm Lab Res Used RIF Installer . | . . . . . . . . . . . . . . . . . . . . . . . . . . . . . . Robots Hacked 4 | . . . . . . . . . . . . . . . . . . . 2 . . . . . . . 1 . 1 Non-combat . | . . . . . . . . . . . . . . . . . . . . . . . . . . . . . . Combat 3 | . . . . . . . . . . . . . . . . . . . 2 . . . . . . . . . 1 Robot Hacks Applied 3 | . . . . . . . . . . . . . . . . . . . 2 . . . . . . . . . 1 parse_system 3 | . . . . . . . . . . . . . . . . . . . 2 . . . . . . . . . 1 Manual 1 | . . . . . . . . . . . . . . . . . . . . . . . . . . . 1 . . Relay Couplers Released . | . . . . . . . . . . . . . . . . . . . . . . . . . . . . . . Robots Rewired 9 | . . . . . . 1 . 1 . 2 . . . . . . . . 5 . . . . . . . . . . Allies Hacked 2 | . . . . . . . . . . . . . . . 1 . . . . . . . . . . . 1 . . Hacks Repelled . | . . . . . . . . . . . . . . . . . . . . . . . . . . . . . . Allies | -11 -10 -10 -10 -9 -8 -7 -7 -7 -7 -6 -6 -6 -6 -6 -5 -5 -5 -5 -5 -4 -4 -4 -4 -4 -3 -3 -3 -3 -2 -------- Run | Scr Mat Min Exi Min Mat Fac Low Low Dat Pro Fac Low Low Zio Pro Fac Upp Upp War Pro Fac Upp Upp Zhi Pro Res Arm Lab Res Total Allies 24 | . . 3 . . . 1 . 1 . 3 . . . 5 . . . . 5 . . . . . . 3 2 . 1 Largest Group 5 | . . 3 3 3 3 2 . 1 . 2 2 1 . 5 5 1 1 . 5 5 2 . . . . 1 2 . 1 Highest-Rated Group 242 | . . 40 40 40 40 40 . 16 . 94 59 24 . 120 120 20 20 . 242 237 109 . . . . 99 159 . 26 Highest-Rated Ally 115 | . . 16 16 16 16 34 . 16 . 94 30 24 . 31 31 20 20 . 60 60 60 . . . . 99 115 . 26 Total Orders 23 | . . . . 1 . . . . . 1 . . . . . . . . 7 2 5 . . . . 2 5 . . STAY 5 | . . . . . . . . . . . . . . . . . . . 2 1 . . . . . 1 1 . . GOTO 13 | . . . . 1 . . . . . 1 . . . . . . . . 4 1 4 . . . . . 2 . . FOLLOW 5 | . . . . . . . . . . . . . . . . . . . 1 . 1 . . . . 1 2 . . Ally Attacks 177 | . . 5 . . 17 10 . 4 . 7 3 3 . . 66 1 1 . 1 24 11 . . . . 15 9 . . Total Damage 5308 | . . 80 . . 200 436 . 47 . 207 37 39 . . 1237 33 34 . 47 1058 352 . . . . 913 588 . . Kills 32 | . . 1 . . 4 4 . . . 1 2 . . . 7 . . . 1 2 1 . . . . 7 2 . . Allies Corrupted 1 | . . . . . . . . . . . . . . . . . . . . . . . . . . 1 . . . Allies Melted . | . . . . . . . . . . . . . . . . . . . . . . . . . . . . . . Intel | -11 -10 -10 -10 -9 -8 -7 -7 -7 -7 -6 -6 -6 -6 -6 -5 -5 -5 -5 -5 -4 -4 -4 -4 -4 -3 -3 -3 -3 -2 ------- Run | Scr Mat Min Exi Min Mat Fac Low Low Dat Pro Fac Low Low Zio Pro Fac Upp Upp War Pro Fac Upp Upp Zhi Pro Res Arm Lab Res Robot Analysis Total 4 | . . . . . . . . . . . . . . . . . . . . . . . . 4 . . . . . Derelict Logs Recovered 19 | . . . . 1 . . 1 . . 3 . 1 1 2 3 . . 1 . 3 . 1 2 . . . . . . Drone Launches . | . . . . . . . . . . . . . . . . . . . . . . . . . . . . . . Drone Recoveries . | . . . . . . . . . . . . . . . . . . . . . . . . . . . . . . Exploration | -11 -10 -10 -10 -9 -8 -7 -7 -7 -7 -6 -6 -6 -6 -6 -5 -5 -5 -5 -5 -4 -4 -4 -4 -4 -3 -3 -3 -3 -2 ------------- Run | Scr Mat Min Exi Min Mat Fac Low Low Dat Pro Fac Low Low Zio Pro Fac Upp Upp War Pro Fac Upp Upp Zhi Pro Res Arm Lab Res Turns Passed 11761 | 39 152 150 154 306 248 308 187 549 31 963 177 616 1150 965 867 380 271 144 649 302 403 152 164 76 416 485 528 520 409 Spaces Moved 16191 | 19 221 220 250 588 338 452 398 683 83 1101 302 1164 1121 906 703 337 555 267 1044 459 492 539 466 162 783 622 738 441 737 Core 1858 | 1 . . . . . 1 . 13 . 2 . . 389 667 465 260 1 . 7 . . . . . . . . . 52 Treads . | . . . . . . . . . . . . . . . . . . . . . . . . . . . . . . Legs . | . . . . . . . . . . . . . . . . . . . . . . . . . . . . . . Wheels 902 | 18 13 . . . . . . . . . . . 394 239 238 . . . . . . . . . . . . . . Hover 46 | . 46 . . . . . . . . . . . . . . . . . . . . . . . . . . . . Flight 13385 | . 162 220 250 588 338 451 398 670 83 1099 302 1164 338 . . 77 554 267 1037 459 492 539 466 162 783 622 738 441 685 Fastest Speed 24 | 100 37 40 40 37 37 37 37 37 37 37 34 34 34 90 90 34 34 34 24 24 24 26 26 24 24 24 24 24 24 Average Speed 42 | 100 48 40 40 37 37 37 37 40 37 37 36 34 77 97 96 84 34 34 28 25 25 26 26 25 24 24 24 24 34 Slowest Speed 150 | 100 100 40 40 40 37 100 117 120 37 100 37 34 117 100 100 100 100 34 150 100 26 26 26 100 24 27 24 24 150 Overloaded Moves . | . . . . . . . . . . . . . . . . . . . . . . . . . . . . . . Propulsion Burnouts . | . . . . . . . . . . . . . . . . . . . . . . . . . . . . . . Robots Hopped 19 | . . . . 10 . 1 . 2 . . 1 . . . . . . . . . . . . . . 4 . . 1 Cave-ins Triggered . | . . . . . . . . . . . . . . . . . . . . . . . . . . . . . . Teleports 1 | . . . . . . . . . . . . . . . . . . . . . . . . . . . 1 . . Exploration Rate (%) 56 | 3 48 47 66 94 30 10 47 67 62 91 9 91 89 87 88 12 83 33 91 58 17 77 69 62 82 20 43 100 19 Regions Visited 29 Branch Regions 21 Pre-discovered Areas 11 | . . 1 . . 1 . . . 1 . . . . 2 . . . . . 1 . . 2 3 . . . . . Known Exits Taken 28 | . 1 1 1 1 1 1 1 1 1 1 1 1 1 1 1 1 1 1 1 1 1 1 1 1 1 1 1 1 . Unknown Exits Taken 1 | 1 . . . . . . . . . . . . . . . . . . . . . . . . . . . . . Scrap Searched 42 | . . . . 2 . . 3 3 . 5 . 6 4 4 4 . 3 2 . . . 3 1 . 2 . . . . Spaces Dug 83 | . . . . . . 2 . 2 . . 1 4 1 . . 3 4 5 8 6 9 2 . . 1 12 11 1 11 Terrain Destroyed 583 | 2 . . . 4 5 27 16 25 . 19 9 14 61 . 17 112 4 5 9 92 66 2 7 . 18 37 17 4 11 Melee 83 | . . . . . . 2 . 2 . . 1 4 1 . . 3 4 5 8 6 9 2 . . 1 12 11 1 11 Projectile 135 | . . . . . . . . 2 . 1 . 1 . . 3 4 . . 1 8 57 . 7 . 17 25 6 3 . AOE 365 | 2 . . . 4 5 25 16 21 . 18 8 9 60 . 14 105 . . . 78 . . . . . . . . . Actions | -11 -10 -10 -10 -9 -8 -7 -7 -7 -7 -6 -6 -6 -6 -6 -5 -5 -5 -5 -5 -4 -4 -4 -4 -4 -3 -3 -3 -3 -2 --------- Run | Scr Mat Min Exi Min Mat Fac Low Low Dat Pro Fac Low Low Zio Pro Fac Upp Upp War Pro Fac Upp Upp Zhi Pro Res Arm Lab Res Total 19518 | 29 243 251 303 628 422 527 419 859 82 1569 338 1297 1306 988 825 386 629 313 1340 574 650 547 490 190 912 836 969 766 830 Wait 1537 | . 2 13 54 7 23 15 3 45 . 346 19 36 57 72 21 13 52 39 189 50 51 6 . . 54 70 71 225 4 Move 16125 | 18 220 219 249 568 337 449 397 678 82 1100 299 1163 1120 905 702 336 554 266 1043 458 491 538 465 161 782 613 737 440 735 Hop 18 | . . . . 9 . 1 . 2 . . 1 . . . . . . . . . . . . . . 4 . . 1 Pick Up 47 | 1 1 2 . 1 4 1 1 2 . 1 1 . 2 3 2 1 2 . 5 1 2 . . 2 1 3 4 1 3 Fast Attach 89 | 5 4 . . 3 4 4 . 2 . 2 2 1 5 4 2 3 . 1 10 1 3 . 1 4 . 6 7 9 6 Attach 18 | . . 1 . . 1 1 . . . 2 . 1 2 . . . . . 2 . . . 1 3 . 1 1 . 2 Detach 19 | . 2 . . . . 3 . 1 . 1 . . . 3 . . . . 1 . . . 1 3 . 1 1 2 . Swap 115 | . . . . 4 2 2 5 20 . 4 1 3 3 . 9 3 . . 7 6 6 1 2 5 7 4 14 5 2 Drop 100 | 1 3 1 . 6 6 4 2 5 . 2 1 1 3 1 4 3 2 1 11 2 6 . 2 3 1 5 11 6 7 Fire 609 | 4 11 15 . 18 20 20 8 45 . 47 13 40 54 . 38 18 . . 25 27 50 . 8 . 41 62 29 15 1 Melee 239 | . . . . . . 15 . 5 . . 1 12 2 . 8 4 9 6 13 6 9 2 . 4 1 12 51 39 40 Ram . | . . . . . . . . . . . . . . . . . . . . . . . . . . . . . . Kick . | . . . . . . . . . . . . . . . . . . . . . . . . . . . . . . Crush . | . . . . . . . . . . . . . . . . . . . . . . . . . . . . . . Escape Stasis 7 | . . . . . . . . . . . . . . . . . . . . . . . . . . 7 . . . Rewire 47 | . . . . . . 5 . 2 . 21 . . . . . . . . 19 . . . . . . . . . . Trap . | . . . . . . . . . . . . . . . . . . . . . . . . . . . . . . Miscellaneous 548 | . . . . 12 25 7 3 52 . 43 . 40 58 . 39 5 10 . 15 23 32 . 10 5 25 48 43 24 29 Route ------- -11/Scrapyard -10/Materials (discovered 3 exits: [*Mat] / *Min x2) -10/Mines -10/Exiles -9/Mines (discovered 2 exits: *Mat x2) -8/Materials (discovered 4 exits: *Fac x2 / *Sto x2) -7/Factory (discovered 2 exits: *Low x2) -7/Lower Caves -7/Lower Caves (discovered 2 exits: *Fac / *Dat) -7/Data Miner -6/Proximity Caves -6/Factory -6/Lower Caves -6/Lower Caves (discovered 2 exits: *Fac / *Zio) -6/Zion -5/Proximity Caves -5/Factory (discovered 5 exits: Fac x3 / *Upp x2) -5/Upper Caves -5/Upper Caves (discovered 2 exits: *Fac / *War) -5/Warlord -4/Proximity Caves -4/Factory (discovered 2 exits: *Upp x2) -4/Upper Caves -4/Upper Caves -4/Zhirov -3/Proximity Caves -3/Research (discovered 3 exits: *Arm / Qua x2) -3/Armory (discovered 3 exits: *Res x2 / *Lab) -3/Lab -2/Research History --------- Turn | Location | Event 2 | -11/Scrapyard | Discovered new exit (range 1) 4 | -11/Scrapyard | Upgraded with Propulsion slot (x1) 4 | -11/Scrapyard | Upgraded with Utility slot (x1) 4 | -11/Scrapyard | Upgraded with Weapon slot (x1) 40 | -11/Scrapyard | Entered Materials 150 | -10/Materials | Identified exit to Mines 179 | -10/Materials | Discovered new exit (range 4) 192 | -10/Materials | Entered Mines 232 | -10/Mines | Learned location of Storage (-8) 232 | -10/Mines | Met a Derelict bent on vengeance 266 | -10/Mines | Assisted by bots powering up and referring to "LRC-V3" 283 | -10/Mines | Reached level 2 304 | -10/Mines | Upgraded with Utility slot (x1) 329 | -10/Mines | Deemed a non-threat by the Exiles lab entrance 329 | -10/Mines | Discovered new exit (range 5) 330 | -10/Mines | Identified exit to Exiles 342 | -10/Mines | Entered Exiles 342 | -10/Exiles | Accompanied by 3 allies 352 | -10/Exiles | Met 8R-AWN 359 | -10/Exiles | Met EX-HEX 373 | -10/Exiles | Met EX-BIN 411 | -10/Exiles | Met EX-DEC 424 | -10/Exiles | Build established: Scavenger-Scout 437 | -10/Exiles | Discovered new exit (range 14) 442 | -10/Exiles | Identified exit to Mines 496 | -10/Exiles | Entered Mines 496 | -9/Mines | Accompanied by 3 allies 504 | -9/Mines | Discovered new exit (range 15) 530 | -9/Mines | Core integrity fell below 50% 595 | -9/Mines | Learned 2 Materials zone layouts 617 | -9/Mines | Discovered new exit (range 8) 619 | -9/Mines | Identified exit to Materials 644 | -9/Mines | Reached level 3 767 | -9/Mines | Met a Derelict shopkeep closing up shop 771 | -9/Mines | Upgraded with Utility slot (x1) 802 | -9/Mines | Entered Materials 802 | -8/Materials | Accompanied by 3 allies 803 | -8/Materials | Identified exit to Factory 804 | -8/Materials | Reached level 4 857 | -8/Materials | Core integrity fell below 50% 887 | -8/Materials | Discovered new exit (range 12) 913 | -8/Materials | Identified exit to Storage 968 | -8/Materials | Reached level 5 973 | -8/Materials | Discovered exit to Factory (range 7) 1000 | -8/Materials | Upgraded with Utility slot (x1) 1050 | -8/Materials | Entered Factory 1050 | -7/Factory | Accompanied by 1 ally 1052 | -7/Factory | Reached level 6 1070 | -7/Factory | Identified exit to Lower Caves 1096 | -7/Factory | Build established: Scout 1127 | -7/Factory | Upgraded with Weapon slot (x1) 1240 | -7/Factory | Core integrity fell below 50% 1287 | -7/Factory | Reached level 7 1358 | -7/Factory | Entered Lower Caves 1361 | -7/Lower Caves | Encountered a Warlord checkpoint 1444 | -7/Lower Caves | Reached level 8 1486 | -7/Lower Caves | Discovered new exit (range 10) 1489 | -7/Lower Caves | Identified exit to Lower Caves 1545 | -7/Lower Caves | Entered another Lower Caves area 1549 | -7/Lower Caves | Discovered new exit (range 15) 1554 | -7/Lower Caves | Identified exit to Factory 1604 | -7/Lower Caves | Core integrity fell below 20% 1689 | -7/Lower Caves | Reached level 9 1769 | -7/Lower Caves | Upgraded with Utility slot (x2) 1770 | -7/Lower Caves | Found Prototype Device 1770 | -7/Lower Caves | Identified Heart of Steel 1862 | -7/Lower Caves | Attracted the attention of an 0b10 outpost 2026 | -7/Lower Caves | Reached level 10 2065 | -7/Lower Caves | Build established: Mutant 2081 | -7/Lower Caves | Discovered new exit (range 14) 2092 | -7/Lower Caves | Identified exit to Data Miner 2094 | -7/Lower Caves | Entered Data Miner 2094 | -7/Data Miner | Discovered new exit (range 7) 2102 | -7/Data Miner | Met Data Miner 2109 | -7/Data Miner | Learned location of Section 7 (-3) 2109 | -7/Data Miner | Acquired the access code to Warlord's prototype stash 2116 | -7/Data Miner | Received God Mode back door access code from Data Miner 2124 | -7/Data Miner | Identified exit to Proximity Caves 2125 | -7/Data Miner | Entered Proximity Caves 2127 | -6/Proximity Caves | Reached level 11 2160 | -6/Proximity Caves | Upgraded with Utility slot (x1) 2292 | -6/Proximity Caves | Escorted by Enhanced Grunt 2315 | -6/Proximity Caves | Received a Behemoth hack from an annoying Tinkerer 2444 | -6/Proximity Caves | Spotted B-75 Beast 2464 | -6/Proximity Caves | Build established: Derelict-Scout 2497 | -6/Proximity Caves | Destroyed B-75 Beast 2581 | -6/Proximity Caves | Learned Factory interactive machine intel 2646 | -6/Proximity Caves | Attracted the attention of an 0b10 outpost 2790 | -6/Proximity Caves | Discovered exit to Factory (range 18) 2916 | -6/Proximity Caves | Reached level 12 3087 | -6/Proximity Caves | Upgraded with Propulsion slot (x1) 3088 | -6/Proximity Caves | Entered Factory 3088 | -6/Factory | Accompanied by 2 allies 3089 | -6/Factory | Identified exit to Lower Caves 3090 | -6/Factory | Loaded intel: 48 interactive machine locations 3090 | -6/Factory | Reached level 13 3200 | -6/Factory | Upgraded with Power slot (x1) 3219 | -6/Factory | Reached level 14 3265 | -6/Factory | Entered Lower Caves 3265 | -6/Lower Caves | Accompanied by 1 ally 3276 | -6/Lower Caves | Core integrity fell below 50% 3283 | -6/Lower Caves | Core integrity fell below 20% 3364 | -6/Lower Caves | Attracted the attention of an 0b10 base 3398 | -6/Lower Caves | Reached level 15 3425 | -6/Lower Caves | Upgraded with Utility slot (x1) 3427 | -6/Lower Caves | Identified exit to Lower Caves 3427 | -6/Lower Caves | Learned location of 2 exits from Upper Caves 3427 | -6/Lower Caves | Learned Extension emergency access door positions 3576 | -6/Lower Caves | Encountered a Warlord checkpoint 3619 | -6/Lower Caves | Attracted the attention of an 0b10 checkpoint 3779 | -6/Lower Caves | Learned 4 Factory zone layouts 3881 | -6/Lower Caves | Entered another Lower Caves area 3887 | -6/Lower Caves | Discovered new exit (range 4) 3888 | -6/Lower Caves | Identified exit to Factory 3904 | -6/Lower Caves | Learned location of 1 exit from Factory 3925 | -6/Lower Caves | Upgraded with Utility slot (x1) 3961 | -6/Lower Caves | Attracted the attention of an 0b10 base 3968 | -6/Lower Caves | Reached level 16 4274 | -6/Lower Caves | Learned Armory emergency access door positions 4274 | -6/Lower Caves | Learned Extension stockpile data 4274 | -6/Lower Caves | Learned Factory security intel 4274 | -6/Lower Caves | Learned Research emergency access door positions 4274 | -6/Lower Caves | Learned Factory trap positions 4315 | -6/Lower Caves | Reached level 17 4367 | -6/Lower Caves | Build established: Derelict-Mutant 4691 | -6/Lower Caves | Discovered new exit (range 13) 4702 | -6/Lower Caves | Identified exit to Zion 5010 | -6/Lower Caves | Found Alien Artifact 5010 | -6/Lower Caves | Identified Core Expander 5010 | -6/Lower Caves | Installed Core Expander, added new Utility slot 5031 | -6/Lower Caves | Entered Zion 5107 | -6/Zion | Gained Derelict followers 5120 | -6/Zion | Discovered new exit (range 10) 5140 | -6/Zion | Identified exit to Proximity Caves 5301 | -6/Zion | Learned Factory trap positions 5327 | -6/Zion | Learned Factory stockpile data 5372 | -6/Zion | Learned location of Quarantine (-3) 5427 | -6/Zion | Received a visual enhancement algorithm 5699 | -6/Zion | Found Prototype Processor 5699 | -6/Zion | Identified Exp. Signal Interpreter 5703 | -6/Zion | Found Prototype Processor 5703 | -6/Zion | Identified Exp. Core Analyzer 5706 | -6/Zion | Found Prototype Hackware 5706 | -6/Zion | Identified Exp. Hacking Suite 5996 | -6/Zion | Entered Proximity Caves 5996 | -5/Proximity Caves | Accompanied by 5 allies 5998 | -5/Proximity Caves | Reached level 18 6235 | -5/Proximity Caves | P-70 Sage assimilated allied 0X-082(l) 6243 | -5/Proximity Caves | Reached level 19 6620 | -5/Proximity Caves | Learned Factory security intel 6636 | -5/Proximity Caves | Reached level 20 6676 | -5/Proximity Caves | Learned location of 1 exit from Factory 6769 | -5/Proximity Caves | Learned location of 1 exit from Factory 6783 | -5/Proximity Caves | Discovered exit to Factory (range 12) 6863 | -5/Proximity Caves | Entered Factory 6863 | -5/Factory | Accompanied by 1 ally 6864 | -5/Factory | Identified exit to Upper Caves 6865 | -5/Factory | Identified exit to Factory 6865 | -5/Factory | Reached level 21 6867 | -5/Factory | Loaded intel: 95 trap records 7124 | -5/Factory | Upgraded with Utility slot (x1) 7163 | -5/Factory | First assault squad dispatched 7186 | -5/Factory | Incoming assault squad redirected 7243 | -5/Factory | Entered Upper Caves 7243 | -5/Upper Caves | Accompanied by 1 ally 7244 | -5/Upper Caves | Identified exit to Upper Caves 7487 | -5/Upper Caves | Build established: Derelict-Scout 7514 | -5/Upper Caves | Entered another Upper Caves area 7516 | -5/Upper Caves | Reached level 22 7542 | -5/Upper Caves | Encountered a Warlord checkpoint 7542 | -5/Upper Caves | Identified exit to Warlord 7658 | -5/Upper Caves | Entered Warlord 7672 | -5/Warlord | System corruption cleaned by Quarantine Array 7790 | -5/Warlord | Met Warlord 7795 | -5/Warlord | Opened Warlord's prototype stash 7799 | -5/Warlord | Upgraded with Propulsion slot (x1) 7803 | -5/Warlord | Found Prototype Reactor 7803 | -5/Warlord | Identified Vortex Chain Reactor 7807 | -5/Warlord | Upgraded with Propulsion slot (x1) 7810 | -5/Warlord | Found Prototype Device 7810 | -5/Warlord | Identified Exp. Cloaking Device 7815 | -5/Warlord | Warlord's base attacked by MAIN.C 7815 | -5/Warlord | Found Prototype Hackware 7815 | -5/Warlord | Identified System Mapper 7879 | -5/Warlord | Found Prototype Energy Gun 8030 | -5/Warlord | Warlord forces counterattacked 8190 | -5/Warlord | Opened side exit 8215 | -5/Warlord | Discovered new exit (range 14) 8221 | -5/Warlord | Identified exit to Proximity Caves 8284 | -5/Warlord | Spotted Executioner 8287 | -5/Warlord | Destroyed Executioner 8307 | -5/Warlord | Entered Proximity Caves 8307 | -4/Proximity Caves | Accompanied by 5 allies 8309 | -4/Proximity Caves | Reached level 23 8322 | -4/Proximity Caves | Learned Research emergency access door positions 8324 | -4/Proximity Caves | Learned location of 1 exit from Upper Caves 8402 | -4/Proximity Caves | Attacked by a faux Warlord 8516 | -4/Proximity Caves | Destroyed 9 combat bots 8524 | -4/Proximity Caves | Reached level 24 8562 | -4/Proximity Caves | Discovered exit to Factory (range 14) 8609 | -4/Proximity Caves | Entered Factory 8609 | -4/Factory | Accompanied by 2 allies 8610 | -4/Factory | Loaded intel: 91 trap records 8760 | -4/Factory | Identified Vortex Rail 8829 | -4/Factory | Identified exit to Upper Caves 8838 | -4/Factory | Build established: Hacker-Scout 8853 | -4/Factory | Incoming investigation squad redirected 8965 | -4/Factory | Reached level 25 9012 | -4/Factory | Entered Upper Caves 9013 | -4/Upper Caves | Identified exit to Upper Caves 9018 | -4/Upper Caves | Learned Research non-interactive machine intel 9164 | -4/Upper Caves | Entered another Upper Caves area 9287 | -4/Upper Caves | Discovered new exit (range 8) 9290 | -4/Upper Caves | Identified exit to Zhirov 9293 | -4/Upper Caves | Learned location of Armory (-3) 9328 | -4/Upper Caves | Entered Zhirov 9328 | -4/Zhirov | Discovered new exit (range 3) 9333 | -4/Zhirov | Met Zhirov 9340 | -4/Zhirov | Learned location of Command (-1) 9344 | -4/Zhirov | Zhirov requested help retrieving the SGEMP Prototype 9349 | -4/Zhirov | Found Alien Artifact 9349 | -4/Zhirov | Identified Integrated Reactor 9349 | -4/Zhirov | Installed Integrated Reactor, increased core energy generation (+2%) 9392 | -4/Zhirov | Upgraded with Utility slot (x1) 9394 | -4/Zhirov | Found Alien Artifact 9404 | -4/Zhirov | Identified exit to Proximity Caves 9404 | -4/Zhirov | Entered Proximity Caves 9406 | -3/Proximity Caves | Reached level 26 9498 | -3/Proximity Caves | Attracted the attention of an 0b10 checkpoint 9737 | -3/Proximity Caves | Core integrity fell below 50% 9781 | -3/Proximity Caves | Discovered new exit (range 9) 9783 | -3/Proximity Caves | Identified exit to Research 9820 | -3/Proximity Caves | Entered Research 9821 | -3/Research | Core integrity fell below 50% 9822 | -3/Research | Loaded intel: 76 non-interactive machine locations 9822 | -3/Research | Reached level 27 9846 | -3/Research | Found Prototype Processor 9846 | -3/Research | Identified Exp. Melee Analysis Suite 9855 | -3/Research | Identified exit to Armory 9855 | -3/Research | Identified exit to Quarantine 9885 | -3/Research | Incoming investigation squad redirected 9895 | -3/Research | System Mapper fried by hacking feedback 9909 | -3/Research | Incoming investigation squad redirected 9921 | -3/Research | Incoming investigation squad redirected 9928 | -3/Research | Reached level 28 9945 | -3/Research | Heart of Steel transformed into Warbot 9950 | -3/Research | Core integrity fell below 20% 10057 | -3/Research | Incoming investigation squad redirected 10305 | -3/Research | Entered Armory 10305 | -3/Armory | Accompanied by 1 ally 10387 | -3/Armory | Spotted B-86 Titan 10390 | -3/Armory | Befriended a Behemoth using the annoying Tinkerer's hack 10405 | -3/Armory | Reached level 29 10469 | -3/Armory | Discovered new exit (range 5) 10470 | -3/Armory | Identified exit to Research 10520 | -3/Armory | Identified Transdimensional Reconstructor 10520 | -3/Armory | Warped through subspace to slip node 10520 | -3/Armory | Discovered new exit (range 1) 10520 | -3/Armory | Identified exit to Lab 10564 | -3/Armory | Repaired Terrain Scanner 10760 | -3/Armory | Discovered exit to Research (range 13) 10773 | -3/Armory | Found Prototype Slashing Weapon 10773 | -3/Armory | Identified Molecular Scythe 10784 | -3/Armory | Fabricated Exp. Terrain Scanner? 10833 | -3/Armory | Entered Lab 10833 | -3/Lab | Discovered exit to Research (range 9) 10836 | -3/Lab | Unable to decrypt terminal 10836 | -3/Lab | Opened the door to a hidden lab 10837 | -3/Lab | Gained access to the hidden lab's interior 10838 | -3/Lab | Detected by scanners 10844 | -3/Lab | Confronted by A5 10867 | -3/Lab | System corruption reached 10% 10901 | -3/Lab | Destroyed A5 10964 | -3/Lab | Unable to decrypt terminal 11017 | -3/Lab | Unable to decrypt terminal 11017 | -3/Lab | Disabled Active System Cloaker 11036 | -3/Lab | MAIN.C forces arrive to investigate 11067 | -3/Lab | Reached level 30 11094 | -3/Lab | Found Integrated Reactor 11094 | -3/Lab | Installed Integrated Reactor, increased core energy generation (+2%) 11098 | -3/Lab | Found Core Expander 11098 | -3/Lab | Installed Core Expander, added new Propulsion slot 11105 | -3/Lab | Found Prototype Special Weapon 11105 | -3/Lab | Identified Gui. Remote Datajack 11114 | -3/Lab | Found Prototype Hackware 11114 | -3/Lab | Identified Exp. System Shield 11122 | -3/Lab | Found Prototype Hackware 11122 | -3/Lab | Identified Quantum Router 11341 | -3/Lab | Found Alien Artifact 11353 | -3/Lab | Entered Research 11353 | -2/Research | Warlord forces began assault on 0b10 11372 | -2/Research | Identified exit to Access 11372 | -2/Research | Identified exit to Testing 11402 | -2/Research | Found Prototype Slashing Weapon 11402 | -2/Research | Identified Vibroblade 11406 | -2/Research | Spotted B-90 Cyclops 11454 | -2/Research | Spotted Tracker 11454 | -2/Research | Spotted Tracker 11463 | -2/Research | Research machine network offline 11470 | -2/Research | Core integrity fell below 50% 11479 | -2/Research | Core integrity fell below 20% 11479 | -2/Research | Spotted Combat Programmer 11495 | -2/Research | Spotted Combat Programmer 11495 | -2/Research | Found Exp. Targeting Computer 11517 | -2/Research | Spotted 4D-DYS(L) 11623 | -2/Research | Borebot progress halted 11639 | -2/Research | Found Prototype Device 11639 | -2/Research | Identified Exp. Phase Shifter 11670 | -2/Research | Borebot progress halted 11699 | -2/Research | Borebot progress halted 11699 | -2/Research | Spotted Striker 11700 | -2/Research | Destroyed Striker 11731 | -2/Research | Spotted Tracker 11731 | -2/Research | Spotted Tracker 11731 | -2/Research | Spotted Tracker 11761 | -2/Research | Identified Core Reset Matrix 11761 | -2/Research | Reached level 31 11761 | -2/Research | Used Core Reset Matrix 11762 | -2/Research | Destroyed by Tracker with Linked Autogun Last Messages --------------- Tracker: "THREAT CONFIRMED. DEPLOY COMBAT PROGRAMMER." 11731_ Cld. Nuclear Pulse Thruster temporarily disabled. Tracker: "THREAT CONFIRMED. DEPLOY COMBAT PROGRAMMER." 11732_ Imp. Diametric Drive temporarily disabled. 11733_ Impulse Thruster Array temporarily disabled. 11744_ System corrupted: Energy discharge (-182). 11747_ Mak. Sensor Array destroyed. 11747_ Upgraded: Core Integrity (+450) 11753_ ANNOUNCEMENT: Unaware assault squad dispatched in southeast quadrant. 11753_ ANNOUNCEMENT: Unaware assault squad dispatched in southwest quadrant. 11753_ ANNOUNCEMENT: Unaware assault squad dispatched in southeast quadrant. 11754_ Critical hit. 11754_ Vortex Chain Reactor destroyed. 11761_ Identified Core Reset Matrix. 11761_ Wiping memory... 11761_ Reached level 31. 11761_ CORE RESET Map ----- +----------------------------------------------------+ | ?????????????????????????????????????? ??????????? | | ????????????#???????????????????????? ???????????? | | ???????#????#?? ????????????????????????#????????? | | ??????????????? ??? ?????????????????????????????? | | ????????????????????????????? ????????????????#??? | | ???????????????????????#?????????????????????????? | | ????????? ??? ????? ?????????????????????????????? | | ?????????? ????????????????????#???????#?????????? | | ????????? ?????????????? ?? ?????????????????????? | | ??????????? ?????????????????????????????????????? | | ???? ???????? ???????????????????????????????????? | | ??????????????????????????????#??? ? ????????????? | | #????#???#?????????????????????????????? ????????? | | ????????????????????????????????????? ???????????? | | ???????????????????? ???????????????????????????#? | | ?????????????????????????????????????????????????? | | ?#??????????????????????????????????????????? ? ?? | | ??? ? ?????????? ? ???? ???????????????????????? ? | | ?????????????? ???????? ?????????????????????????? | | ???????????? ?? ???????? ????? ???????? ?????????? | | ???????????????????????###+#######???????????????? | | ??????????????????#????# #????????? ?????? | | ???????????????????????# ! #???????????????? | | ?????????? ????????????# *#???#??? ???????? | | ???????????????????????# #?? ????????????? | | ????????????????? ?????+ @ #??????????? ? ?? | | ? ??? ?????????????????# """"" #????#?????????? | | ??#???????#?????#??????# """"" #?????#?????????? | | ????????????? ?????????# """"" ????????????# ???? | | ????? ?????????????????;;;;;;;;??????????????????? | | ??????????????????? ???; ;?????????????"????? | | ? ??????????????? ? ?? s ; ?????????????????? | | ??????????????????????s#######??????????????????? | | ????????????? ???? ??#s??????????????????????????? | | ??? ????????????????## ??????????????????????????? | | ? ??????? ???????????#?????????? ????????????????? | | ????????????????????????#????#???????????????????? | | ???????????????????????##??????????? ????????????? | | ??????????? ?????????????????????????????????????? | | ? ???????????????????????????????????#??????????? | | ??????????????????????????????#????? ?????? ?????? | | ?????????????????????????? ??????????????????????? | | ???????????????????????????????????????? ????????? | | ???????????????? ???????????????? ???????????????+ | | ??????????????????????????? ???????????#?????????? | | ???????????????????????????????????????????##????? | | ?????#???????????????? ??????????????????????????? | | ??????????? ?????????????????????????????????????? | | ???????????????? ?????????????#????????#?????????? | | ??????????????????????????????????#??????????????? | +----------------------------------------------------+ Best States ------------- Heat Dissipation 55 Energy Generation 85 Energy Capacity 700 Matter Stores 300 Matter Capacity 300 Sight Range 16 Robot Scan Range 28 Terrain Scan Range 30 Terrain Scan Density 510 Cloak Strength 4 Power Amplification 40 Armor Coverage 150 Resistance: KI 5 Resistance: TH 30 Weapon Cycling 20 Phase Shifting 20 Evasion (%) 99 Targeting Accuracy 12 Target Analysis 8 Core Analysis 15 Armor Integrity Analysis 33 Offensive Hacking 36 Defensive Hacking 25 Item Schematics ----------------- None Robot Schematics ------------------ None Fabricated ------------ Exp. Terrain Scanner | x1 | -3/Armory Alien Tech Used ----------------- Core Expander Integrated Reactor Transdimensional Reconstructor Core Reset Matrix Achievements -------------- None Challenges ------------ None RPGLIKE | -11 -10 -10 -10 -9 -8 -7 -7 -7 -7 -6 -6 -6 -6 -6 -5 -5 -5 -5 -5 -4 -4 -4 -4 -4 -3 -3 -3 -3 -2 --------- Run | Scr Mat Min Exi Min Mat Fac Low Low Dat Pro Fac Low Low Zio Pro Fac Upp Upp War Pro Fac Upp Upp Zhi Pro Res Arm Lab Res Levels Raised 30 | . . 1 . 1 2 2 1 2 . 2 2 1 2 . 3 1 . 1 . 2 1 . . . 1 2 1 1 1 XP Earned 48628 | 3000 635 1071 200 1565 3057 3074 900 3020 650 3620 1895 2280 2750 453 4248 1695 244 244 934 2013 1549 170 286 220 2210 2526 850 1147 2122 XP Spent 46350 | 3000 . 800 . 1850 2400 800 . 5435 . 3100 550 2705 2900 1250 1500 3200 . . 4520 . . . . 3500 850 505 . . 7485 Upgrades 85 | 10 . 1 . 2 2 1 . 10 . 2 2 4 1 1 1 1 . . 6 . . . . 1 3 6 . . 31 Power Slot 1 | . . . . . . . . . . . 1 . . . . . . . . . . . . . . . . . . Propulsion Slot 4 | 1 . . . . . . . . . 1 . . . . . . . . 2 . . . . . . . . . . Utility Slot 11 | 1 . 1 . 1 1 . . 2 . 1 . 1 1 . . 1 . . . . . . . 1 . . . . . Weapon Slot 2 | 1 . . . . . 1 . . . . . . . . . . . . . . . . . . . . . . . Core Integrity 37 | . . . . . . . . . . . . 3 . . . . . . . . . . . . . 5 . . 29 Heat Dissipation 5 | . . . . . . . . . . . 1 . . . . . . . 3 . . . . . . 1 . . . Mass Support 5 | 1 . . . . . . . 4 . . . . . . . . . . . . . . . . . . . . . Inventory Capacity 7 | 2 . . . 1 1 . . . . . . . . 1 1 . . . 1 . . . . . . . . . . Sensor Range 3 | 1 . . . . . . . 2 . . . . . . . . . . . . . . . . . . . . . Terrain Scan Density 5 | 1 . . . . . . . 2 . . . . . . . . . . . . . . . . . . . . 2 Ranged Accuracy 2 | 1 . . . . . . . . . . . . . . . . . . . . . . . . 1 . . . . KI Resistance % 1 | 1 . . . . . . . . . . . . . . . . . . . . . . . . . . . . . TH Resistance % 1 | . . . . . . . . . . . . . . . . . . . . . . . . . 1 . . . . KI Damage % 1 | . . . . . . . . . . . . . . . . . . . . . . . . . 1 . . . . Protomatter Created 4866 | . . . . 91 98 46 . 408 . 497 . 357 660 . 455 159 84 . 510 302 184 . 37 86 142 265 226 182 77 Integrity Restored 11536 | . . . . 231 542 147 60 1121 . 904 . 900 1291 . 762 102 205 . 275 442 611 . 214 59 561 1098 820 546 645 Core 9691 | . . . . 231 431 147 60 930 . 730 . 900 969 . 437 102 169 . 188 341 360 . 176 . 561 1098 679 537 645 Parts 1845 | . . . . . 111 . . 191 . 174 . . 322 . 325 . 36 . 87 101 251 . 38 59 . . 141 9 . Protomatter Decayed 3983 | . . . . 14 . 44 . 27 . 152 . 56 365 . 277 56 54 . 1692 237 73 . . . . 15 . . 921 Game ------ Seed VariableRecoilVibroblade Manual? 0 Play Time 05:09:49 Cumulative 354.9 hours Start 2020.01.06 @ 01:43:15 End 2020.01.06 @ 22:05:33 Sessions 7 Manual Loads 0 Difficulty Rogue Special Mode Winter2019/RPGLIKE Game No. 136 Rogue 136 Adventurer 0 Explorer 0 Win Type - Total 11 Types 8/1/0/2/0/0/0 Lore% 86 Gallery% 85 Achievement% 66 Wizard Run 0 Options --------- ASCII 0 Keyboard 0 Movement Numpad Keybinds 0 Fullscreen 0 Font 14/Dina Map View 76x50 Tactical HUD 1 Map Filters NONE Filters NONE Steam 1 RUN: 3c7de4f9-42aa-4657-96c9-94b2907e93ae